{"text_format":"1","workbook":"xlsx","n_sheets":2,"sheets":["Данные","Лист1"],"not_rendered":{"charts":0,"images":0,"macros":1,"external_links":0,"defined_names":4,"comments":0,"pivot_tables":0},"unopened":[],"bounds":{"document_bytes":16777216,"sheet_cells":100000,"rows_first":2000,"rows_last":500,"rows_between":2000,"halvings":0,"cell_chars":16384,"cell_head_chars":4096},"cells_cut":0,"cells_raw":0,"read":"whole","date_system":"1900"}

{"sheet":"Данные","index":0,"n_rows":189,"n_cols":10,"rows_kept":189,"cut":false,"hidden":false,"merged":[[1,0,1,9]]}
[null,null,null,null,null,null,null,null,"Приложение №1"]
["Перечень актуальных и готовых к реализации невостребованных МТР"]
[]
["Наименование лота","Наименование ОГ","№ лота","№ позиции","Наименование неликвидных (НЛ) и невостребованных ликвидных (НВЛ) материалов","Ед. изм","Количество","Мин. цена реализации за ед., руб., без НДС ","Сумма, руб. без НДС","Место нахождения"]
["Труба воздухозаборная","ПАО АНК \"Башнефть\" \"Башнефть-Новойл\"",1,1,"Труба воздухозаборная","ШТ",1,725052.35,{"$f":"G5*H5","v":725052.35},"450045, г. Уфа, ПАО АНК \"Башнефть\" \"Башнефть-Новойл\""]
["Труба воздухозаборная","ПАО АНК \"Башнефть\" \"Башнефть-Новойл\"",1,2,"Труба воздухозаборная","ШТ",1,849867.94,849867.94,"450045, г. Уфа, ПАО АНК \"Башнефть\" \"Башнефть-Новойл\""]
["Труба из жаропрочной стали","ПАО АНК \"Башнефть\" \"Башнефть-Новойл\"",2,3,"Труба 159х9 - 12Х1МФ","Т",4.556,60375,275068.5,"450045, г. Уфа, ПАО АНК \"Башнефть\" \"Башнефть-Новойл\""]
["Труба из жаропрочной стали","ПАО АНК \"Башнефть\" \"Башнефть-Новойл\"",2,4,"Труба 159х9 - 12Х1МФ","Т",0.08,60375,4830,"450045, г. Уфа, ПАО АНК \"Башнефть\" \"Башнефть-Новойл\""]
["Труба из жаропрочной стали","ПАО АНК \"Башнефть\" \"Башнефть-Новойл\"",2,5,"Труба 159х9 - 12Х1МФ","Т",0.12,60375,7245,"450045, г. Уфа, ПАО АНК \"Башнефть\" \"Башнефть-Новойл\""]
["Труба из жаропрочной стали","ПАО АНК \"Башнефть\" \"Башнефть-Новойл\"",2,6,"Труба 159х9 - 12Х1МФ","Т",0.151,60375,9116.625,"450045, г. Уфа, ПАО АНК \"Башнефть\" \"Башнефть-Новойл\""]
["Труба из жаропрочной стали","ПАО АНК \"Башнефть\" \"Башнефть-Новойл\"",2,7,"Труба б/ш Б-108Х7 ст15Х5М","Т",0.66,75600,49896,"450045, г. Уфа, ПАО АНК \"Башнефть\" \"Башнефть-Новойл\""]
["Труба из жаропрочной стали","ПАО АНК \"Башнефть\" \"Башнефть-Новойл\"",2,8,"Труба б/ш Б-108Х7 ст15Х5М","Т",1,75600,75600,"450045, г. Уфа, ПАО АНК \"Башнефть\" \"Башнефть-Новойл\""]
["Труба из жаропрочной стали","ПАО АНК \"Башнефть\" \"Башнефть-Новойл\"",2,9,"Труба б/ш Б-108Х7 ст15Х5М","Т",0.14499999999999999,75600,10962,"450045, г. Уфа, ПАО АНК \"Башнефть\" \"Башнефть-Новойл\""]
["Труба из жаропрочной стали","ПАО АНК \"Башнефть\" \"Башнефть-Новойл\"",2,10,"Труба б/ш Б-108Х7 ст15Х5М","Т",0.17399999999999999,75600,13154.4,"450045, г. Уфа, ПАО АНК \"Башнефть\" \"Башнефть-Новойл\""]
["Труба из жаропрочной стали","ПАО АНК \"Башнефть\" \"Башнефть-Новойл\"",2,11,"Труба стальная б/ш Г 89х6 - 12Х1МФ","Т",1.99,97357.82,193742.06180000002,"450045, г. Уфа, ПАО АНК \"Башнефть\" \"Башнефть-Новойл\""]
["Труба из жаропрочной стали","ПАО АНК \"Башнефть\" \"Башнефть-Новойл\"",2,12,"Труба стальная б/ш Г 89х6 - 12Х1МФ","Т",0.84799999999999998,97357.82,82559.431360000002,"450045, г. Уфа, ПАО АНК \"Башнефть\" \"Башнефть-Новойл\""]
["Труба из жаропрочной стали","ПАО АНК \"Башнефть\" \"Башнефть-Новойл\"",2,13,"Труба 159х9 - 12Х1МФ","Т",0.2,60375,12075,"450045, г. Уфа, ПАО АНК \"Башнефть\" \"Башнефть-Новойл\""]
["Труба из жаропрочной стали","ПАО АНК \"Башнефть\" \"Башнефть-Новойл\"",2,14,"Труба 159х9 - 12Х1МФ","Т",0.46600000000000003,60375,28134.75,"450045, г. Уфа, ПАО АНК \"Башнефть\" \"Башнефть-Новойл\""]
["Труба из жаропрочной стали","ПАО АНК \"Башнефть\" \"Башнефть-Новойл\"",2,15,"Труба 159х9 - 12Х1МФ","Т",0.115,60375,6943.125,"450045, г. Уфа, ПАО АНК \"Башнефть\" \"Башнефть-Новойл\""]
["Труба из жаропрочной стали","ПАО АНК \"Башнефть\" \"Башнефть-Новойл\"",2,16,"Труба 159х9 - 12Х1МФ","Т",0.88500000000000001,60375,53431.875,"450045, г. Уфа, ПАО АНК \"Башнефть\" \"Башнефть-Новойл\""]
["Труба из жаропрочной стали","ПАО АНК \"Башнефть\" \"Башнефть-Новойл\"",2,17,"Труба 159х9 - 12Х1МФ","Т",0.151,60375,9116.625,"450045, г. Уфа, ПАО АНК \"Башнефть\" \"Башнефть-Новойл\""]
["Труба из жаропрочной стали","ПАО АНК \"Башнефть\" \"Башнефть-Новойл\"",2,18,"Труба 720х25 - 15Х1М1Ф ЦЛ","Т",0.877,223707.43,196191.41610999999,"450045, г. Уфа, ПАО АНК \"Башнефть\" \"Башнефть-Новойл\""]
["Труба из жаропрочной стали","ПАО АНК \"Башнефть\" \"Башнефть-Новойл\"",2,19,"Труба б/ш А-127Х8 ст15Х5М","Т",0.19500000000000001,83874,16355.43,"450045, г. Уфа, ПАО АНК \"Башнефть\" \"Башнефть-Новойл\""]
["Труба из жаропрочной стали","ПАО АНК \"Башнефть\" \"Башнефть-Новойл\"",2,20,"Труба б/ш Б-273х20 ст15Х5М","Т",1,75600,75600,"450045, г. Уфа, ПАО АНК \"Башнефть\" \"Башнефть-Новойл\""]
["Труба из жаропрочной стали","ПАО АНК \"Башнефть\" \"Башнефть-Новойл\"",2,21,"Труба 720х25 - 15Х1М1Ф ЦЛ","Т",15.803000000000001,223707.43,3535248.5162900002,"450045, г. Уфа, ПАО АНК \"Башнефть\" \"Башнефть-Новойл\""]
["Труба из жаропрочной стали","ПАО АНК \"Башнефть\" \"Башнефть-Новойл\"",2,22,"Труба 720х25 - 15Х1М1Ф ЦЛ","Т",7.7169999999999996,223707.43,1726350.2373099998,"450045, г. Уфа, ПАО АНК \"Башнефть\" \"Башнефть-Новойл\""]
["Труба из жаропрочной стали","ПАО АНК \"Башнефть\" \"Башнефть-Новойл\"",2,23,"Труба 720х25 - 15Х1М1Ф ЦЛ","Т",3.3620000000000001,223397.17,751061.28554000007,"450045, г. Уфа, ПАО АНК \"Башнефть\" \"Башнефть-Новойл\""]
["Труба из жаропрочной стали","ПАО АНК \"Башнефть\" \"Башнефть-Новойл\"",2,24,"Тр.426х14 15Х1М1Ф ЦЛ ТУ1333-183-00220302","Т",0.29699999999999999,411385.38,122181.45785999999,"450045, г. Уфа, ПАО АНК \"Башнефть\" \"Башнефть-Новойл\""]
["Труба из жаропрочной стали","ПАО АНК \"Башнефть\" \"Башнефть-Новойл\"",2,25,"Труба 219х16 15Х5М ГОСТ 550","Т",8.1000000000000003E-2,65100,5273.1,"450045, г. Уфа, ПАО АНК \"Башнефть\" \"Башнефть-Новойл\""]
["Труба из жаропрочной стали","ПАО АНК \"Башнефть\" \"Башнефть-Новойл\"",2,26,"Труба 219х22 - 15Х1М1Ф","Т",0.63,84000,52920,"450045, г. Уфа, ПАО АНК \"Башнефть\" \"Башнефть-Новойл\""]
["Труба из жаропрочной стали","ПАО АНК \"Башнефть\" \"Башнефть-Новойл\"",2,27,"Труба 22х3 15Х5М ГОСТ 550","ПМ",392,205.13,80410.959999999992,"450045, г. Уфа, ПАО АНК \"Башнефть\" \"Башнефть-Новойл\""]
["Труба из жаропрочной стали","ПАО АНК \"Башнефть\" \"Башнефть-Новойл\"",2,28,"Труба 325х13 - 12Х1МФ","Т",1.788,111340.74,199077.24312,"450045, г. Уфа, ПАО АНК \"Башнефть\" \"Башнефть-Новойл\""]
["Труба из жаропрочной стали","ПАО АНК \"Башнефть\" \"Башнефть-Новойл\"",2,29,"Труба 325х14 15Х1М1Ф ЦЛ","Т",1.484,139524,207053.61600000001,"450045, г. Уфа, ПАО АНК \"Башнефть\" \"Башнефть-Новойл\""]
["Труба из жаропрочной стали","ПАО АНК \"Башнефть\" \"Башнефть-Новойл\"",2,30,"Труба 325х16 15Х1М1Ф ТУ 14-3Р-55-2001","Т",0.52,139524,72552.479999999996,"450045, г. Уфа, ПАО АНК \"Башнефть\" \"Башнефть-Новойл\""]
["Труба из жаропрочной стали","ПАО АНК \"Башнефть\" \"Башнефть-Новойл\"",2,31,"Труба 406.4х12.7 Gr6 ASTM A333","ПМ",9.65,4918.33,47461.8845,"450045, г. Уфа, ПАО АНК \"Башнефть\" \"Башнефть-Новойл\""]
["Труба из жаропрочной стали","ПАО АНК \"Башнефть\" \"Башнефть-Новойл\"",2,32,"Труба 426х12 15Х5М ЦЛ","Т",1.417,69300,98198.1,"450045, г. Уфа, ПАО АНК \"Башнефть\" \"Башнефть-Новойл\""]
["Труба из жаропрочной стали","ПАО АНК \"Башнефть\" \"Башнефть-Новойл\"",2,33,"Труба 45х4 - 12Х1МФ","Т",0.47799999999999998,176400,84319.2,"450045, г. Уфа, ПАО АНК \"Башнефть\" \"Башнефть-Новойл\""]
["Труба из жаропрочной стали","ПАО АНК \"Башнефть\" \"Башнефть-Новойл\"",2,34,"Труба 465х16 - 15Х1М1Ф","Т",1.0649999999999999,168630,179590.94999999998,"450045, г. Уфа, ПАО АНК \"Башнефть\" \"Башнефть-Новойл\""]
["Труба из жаропрочной стали","ПАО АНК \"Башнефть\" \"Башнефть-Новойл\"",2,35,"Труба 57х4 - 12Х1МФ","Т",2E-3,91324.800000000003,182.64960000000002,"450045, г. Уфа, ПАО АНК \"Башнефть\" \"Башнефть-Новойл\""]
["Труба из жаропрочной стали","ПАО АНК \"Башнефть\" \"Башнефть-Новойл\"",2,36,"Труба 76х5 - 15ХМ","Т",3.0830000000000002,105738.94,325993.15202000004,"450045, г. Уфа, ПАО АНК \"Башнефть\" \"Башнефть-Новойл\""]
["Труба из жаропрочной стали","ПАО АНК \"Башнефть\" \"Башнефть-Новойл\"",2,37,"Труба б/ш 38х6 15Х5М","Т",0.26,75600,19656,"450045, г. Уфа, ПАО АНК \"Башнефть\" \"Башнефть-Новойл\""]
["Труба из жаропрочной стали","ПАО АНК \"Башнефть\" \"Башнефть-Новойл\"",2,38,"Труба б/ш А-127Х8 ст15Х5М","Т",5.8999999999999997E-2,83874,4948.5659999999998,"450045, г. Уфа, ПАО АНК \"Башнефть\" \"Башнефть-Новойл\""]
["Труба из жаропрочной стали","ПАО АНК \"Башнефть\" \"Башнефть-Новойл\"",2,39,"Труба б/ш А-127Х8 ст15Х5М","Т",0.26,83874,21807.24,"450045, г. Уфа, ПАО АНК \"Башнефть\" \"Башнефть-Новойл\""]
["Труба из жаропрочной стали","ПАО АНК \"Башнефть\" \"Башнефть-Новойл\"",2,40,"Труба б/ш А-127Х8 ст15Х5М","Т",0.14000000000000001,83874,11742.36,"450045, г. Уфа, ПАО АНК \"Башнефть\" \"Башнефть-Новойл\""]
["Труба из жаропрочной стали","ПАО АНК \"Башнефть\" \"Башнефть-Новойл\"",2,41,"Труба б/ш Б-108Х7 ст15Х5М","Т",0.79700000000000004,75600,60253.200000000004,"450045, г. Уфа, ПАО АНК \"Башнефть\" \"Башнефть-Новойл\""]
["Труба из жаропрочной стали","ПАО АНК \"Башнефть\" \"Башнефть-Новойл\"",2,42,"Труба б/ш Б-108Х7 ст15Х5М","Т",0.51300000000000001,75600,38782.800000000003,"450045, г. Уфа, ПАО АНК \"Башнефть\" \"Башнефть-Новойл\""]
["Труба из жаропрочной стали","ПАО АНК \"Башнефть\" \"Башнефть-Новойл\"",2,43,"Труба б/ш Б-219Х8 ст15Х5М","Т",8.6999999999999994E-2,75600,6577.2,"450045, г. Уфа, ПАО АНК \"Башнефть\" \"Башнефть-Новойл\""]
["Труба из жаропрочной стали","ПАО АНК \"Башнефть\" \"Башнефть-Новойл\"",2,44,"Труба б/ш Б-273х14 ст15Х5М","Т",2.105,75600,159138,"450045, г. Уфа, ПАО АНК \"Башнефть\" \"Башнефть-Новойл\""]
["Труба из жаропрочной стали","ПАО АНК \"Башнефть\" \"Башнефть-Новойл\"",2,45,"Труба б/ш Б-273х20 ст15Х5М","Т",0.86099999999999999,75600,65091.6,"450045, г. Уфа, ПАО АНК \"Башнефть\" \"Башнефть-Новойл\""]
["Труба из жаропрочной стали","ПАО АНК \"Башнефть\" \"Башнефть-Новойл\"",2,46,"Труба б/ш Б-273х20 ст15Х5М","Т",0.65300000000000002,75600,49366.8,"450045, г. Уфа, ПАО АНК \"Башнефть\" \"Башнефть-Новойл\""]
["Труба из жаропрочной стали","ПАО АНК \"Башнефть\" \"Башнефть-Новойл\"",2,47,"Труба б/ш Б-426Х12 ст15Х5М","Т",1.075,75600,81270,"450045, г. Уфа, ПАО АНК \"Башнефть\" \"Башнефть-Новойл\""]
["Труба из жаропрочной стали","ПАО АНК \"Башнефть\" \"Башнефть-Новойл\"",2,48,"Труба б/ш Б-89Х5 ст15Х5М","Т",2.0950000000000002,94255.2,197464.644,"450045, г. Уфа, ПАО АНК \"Башнефть\" \"Башнефть-Новойл\""]
["Труба из жаропрочной стали","ПАО АНК \"Башнефть\" \"Башнефть-Новойл\"",2,49,"Труба б/ш х/д к/ст 57х4 15Х25Т","Т",0.53,449301.87,238129.99110000001,"450045, г. Уфа, ПАО АНК \"Башнефть\" \"Башнефть-Новойл\""]
["Труба из жаропрочной стали","ПАО АНК \"Башнефть\" \"Башнефть-Новойл\"",2,50,"Труба стальная б/ш Г 108х6 - 12Х1МФ","Т",5.2729999999999997,100171.63,528205.00499000004,"450045, г. Уфа, ПАО АНК \"Башнефть\" \"Башнефть-Новойл\""]
["Труба из жаропрочной стали","ПАО АНК \"Башнефть\" \"Башнефть-Новойл\"",2,51,"Труба стальная б/ш Г 219Х10 - 12Х1МФ","Т",0.63900000000000001,65083.199999999997,41588.164799999999,"450045, г. Уфа, ПАО АНК \"Башнефть\" \"Башнефть-Новойл\""]
["Труба из жаропрочной стали","ПАО АНК \"Башнефть\" \"Башнефть-Новойл\"",2,52,"Труба стальная б/ш Г 273Х10 - 12Х1МФ","Т",0.28000000000000003,135649.31,37981.806800000006,"450045, г. Уфа, ПАО АНК \"Башнефть\" \"Башнефть-Новойл\""]
["Труба из жаропрочной стали","ПАО АНК \"Башнефть\" \"Башнефть-Новойл\"",2,53,"Труба 530х25 - 15Х1М1Ф ЦЛ","Т",0.75600000000000001,197400,149234.4,"450045, г. Уфа, ПАО АНК \"Башнефть\" \"Башнефть-Новойл\""]
["Труба из жаропрочной стали","ПАО АНК \"Башнефть\" \"Башнефть-Новойл\"",2,54,"Труба 530х25 - 15Х1М1Ф ЦЛ","Т",2.3E-2,197400,4540.2,"450045, г. Уфа, ПАО АНК \"Башнефть\" \"Башнефть-Новойл\""]
["Труба из жаропрочной стали","ПАО АНК \"Башнефть\" \"Башнефть-Новойл\"",2,55,"Труба 530х25 - 15Х1М1Ф ЦЛ","Т",1.04,197400,205296,"450045, г. Уфа, ПАО АНК \"Башнефть\" \"Башнефть-Новойл\""]
["Труба из жаропрочной стали","ПАО АНК \"Башнефть\" \"Башнефть-Новойл\"",2,56,"Труба 530х25 - 15Х1М1Ф ЦЛ","Т",0.78300000000000003,197400,154564.20000000001,"450045, г. Уфа, ПАО АНК \"Башнефть\" \"Башнефть-Новойл\""]
["Труба из жаропрочной стали","ПАО АНК \"Башнефть\" \"Башнефть-Новойл\"",2,57,"Труба 530х25 - 15Х1М1Ф ЦЛ","Т",0.92800000000000005,197400,183187.20000000001,"450045, г. Уфа, ПАО АНК \"Башнефть\" \"Башнефть-Новойл\""]
["Труба из жаропрочной стали","ПАО АНК \"Башнефть\" \"Башнефть-Новойл\"",2,58,"Труба 530х25 - 15Х1М1Ф ЦЛ","Т",0.93700000000000006,197400,184963.80000000002,"450045, г. Уфа, ПАО АНК \"Башнефть\" \"Башнефть-Новойл\""]
["Труба из жаропрочной стали","ПАО АНК \"Башнефть\" \"Башнефть-Новойл\"",2,59,"Труба 530х25 - 15Х1М1Ф ЦЛ","Т",1.2E-2,197400,2368.8000000000002,"450045, г. Уфа, ПАО АНК \"Башнефть\" \"Башнефть-Новойл\""]
["Труба из жаропрочной стали","ПАО АНК \"Башнефть\" \"Башнефть-Новойл\"",2,60,"Труба б/ш Б-530Х10 ст15Х5М","Т",5.3979999999999997,248610.6,1342000.0188,"450045, г. Уфа, ПАО АНК \"Башнефть\" \"Башнефть-Новойл\""]
["Труба из жаропрочной стали","ПАО АНК \"Башнефть\" \"Башнефть-Новойл\"",2,61,"Труба б/ш Б-530Х10 ст15Х5М","Т",1.43,248610.6,355513.158,"450045, г. Уфа, ПАО АНК \"Башнефть\" \"Башнефть-Новойл\""]
["Труба из жаропрочной стали","ПАО АНК \"Башнефть\" \"Башнефть-Новойл\"",2,62,"Труба 630х28 15Х1М1Ф","Т",2.0550000000000002,206996.43,425377.66365,"450045, г. Уфа, ПАО АНК \"Башнефть\" \"Башнефть-Новойл\""]
["Труба из жаропрочной стали","ПАО АНК \"Башнефть\" \"Башнефть-Новойл\"",2,63,"Труба 630х28 15Х1М1Ф","Т",1.7849999999999999,206996.43,369488.62754999998,"450045, г. Уфа, ПАО АНК \"Башнефть\" \"Башнефть-Новойл\""]
["Труба из жаропрочной стали","ПАО АНК \"Башнефть\" \"Башнефть-Новойл\"",2,64,"Труба б/ш г/д 377х18 Б ст15Х5М","Т",2.4180000000000001,244858.07,592066.81326000008,"450045, г. Уфа, ПАО АНК \"Башнефть\" \"Башнефть-Новойл\""]
["Труба из жаропрочной стали","ПАО АНК \"Башнефть\" \"Башнефть-Новойл\"",2,65,"Труба б/ш г/д 377х18 Б ст15Х5М","Т",1.21,244508.94,{"$f":"G69*H69","v":295855.8174},"450045, г. Уфа, ПАО АНК \"Башнефть\" \"Башнефть-Новойл\""]
["Труба из жаропрочной стали","ПАО АНК \"Башнефть\" \"Башнефть-Новойл\"",2,66,"Труба б/ш г/д 426Х14 ст15Х5М","Т",0.92600000000000005,230040.56,{"$f":"G70*H70","v":213017.55856},"450045, г. Уфа, ПАО АНК \"Башнефть\" \"Башнефть-Новойл\""]
["Труба из жаропрочной стали","ПАО АНК \"Башнефть\" \"Башнефть-Новойл\"",2,67,"Труба б/ш г/д 426Х14 ст15Х5М","Т",3.1419999999999999,132779.72,417193.88023999997,"450045, г. Уфа, ПАО АНК \"Башнефть\" \"Башнефть-Новойл\""]
["Труба из нержавеющей стали","ПАО АНК \"Башнефть\" \"Башнефть-Новойл\"",3,68,"Труба 18х2.5 12Х18Н10Т ГОСТ 9941","ПМ",20,249.9,4998,"450045, г. Уфа, ПАО АНК \"Башнефть\" \"Башнефть-Новойл\""]
["Труба из нержавеющей стали","ПАО АНК \"Башнефть\" \"Башнефть-Новойл\"",3,69,"Труба б/ш х/д к/ст 273Х6-12Х18Н10Т","Т",7.2999999999999995E-2,288299.56,21045.867879999998,"450045, г. Уфа, ПАО АНК \"Башнефть\" \"Башнефть-Новойл\""]
["Труба из нержавеющей стали","ПАО АНК \"Башнефть\" \"Башнефть-Новойл\"",3,70,"Труба б/ш х/д к/ст 325Х16-12Х18Н10Т","Т",1,226151.46,226151.46,"450045, г. Уфа, ПАО АНК \"Башнефть\" \"Башнефть-Новойл\""]
["Труба из нержавеющей стали","ПАО АНК \"Башнефть\" \"Башнефть-Новойл\"",3,71,"Труба б/ш х/д к/ст 45Х4-12Х18Н10Т","Т",2,193731.44,387462.88,"450045, г. Уфа, ПАО АНК \"Башнефть\" \"Башнефть-Новойл\""]
["Труба из нержавеющей стали","ПАО АНК \"Башнефть\" \"Башнефть-Новойл\"",3,72,"Труба 14х2 12Х18Н10Т ГОСТ 9941","ПМ",7.5,62.78,470.85,"450045, г. Уфа, ПАО АНК \"Башнефть\" \"Башнефть-Новойл\""]
["Труба из нержавеющей стали","ПАО АНК \"Башнефть\" \"Башнефть-Новойл\"",3,73,"Труба 18х2.5 12Х18Н10Т ГОСТ 9941","ПМ",0.89,249.9,222.411,"450045, г. Уфа, ПАО АНК \"Башнефть\" \"Башнефть-Новойл\""]
["Труба из нержавеющей стали","ПАО АНК \"Башнефть\" \"Башнефть-Новойл\"",3,74,"Труба 18х3.5 12Х18Н10Т ГОСТ 9941","ПМ",3,183.96,551.88,"450045, г. Уфа, ПАО АНК \"Башнефть\" \"Башнефть-Новойл\""]
["Труба из нержавеющей стали","ПАО АНК \"Башнефть\" \"Башнефть-Новойл\"",3,75,"Труба 28х4 12Х18Н10Т ГОСТ 9941","Т",2.8000000000000001E-2,261240,7314.72,"450045, г. Уфа, ПАО АНК \"Башнефть\" \"Башнефть-Новойл\""]
["Труба из нержавеющей стали","ПАО АНК \"Башнефть\" \"Башнефть-Новойл\"",3,76,"Труба 32х3.5 06ХН28МДТ ГОСТ 9941","Т",1E-3,504000,504,"450045, г. Уфа, ПАО АНК \"Башнефть\" \"Башнефть-Новойл\""]
["Труба из нержавеющей стали","ПАО АНК \"Башнефть\" \"Башнефть-Новойл\"",3,77,"Труба 377Х8-08Х18Н10Т","Т",0.36899999999999999,176400,65091.6,"450045, г. Уфа, ПАО АНК \"Башнефть\" \"Башнефть-Новойл\""]
["Труба из нержавеющей стали","ПАО АНК \"Башнефть\" \"Башнефть-Новойл\"",3,78,"Труба 63х5 12Х18Н10Т ГОСТ 9940","Т",4.5999999999999999E-2,84756,3898.7759999999998,"450045, г. Уфа, ПАО АНК \"Башнефть\" \"Башнефть-Новойл\""]
["Труба из нержавеющей стали","ПАО АНК \"Башнефть\" \"Башнефть-Новойл\"",3,79,"Труба 89х6 10Х17Н13М2Т МКК т/о р с 9941","Т",1.6E-2,322938,5167.0079999999998,"450045, г. Уфа, ПАО АНК \"Башнефть\" \"Башнефть-Новойл\""]
["Труба из нержавеющей стали","ПАО АНК \"Башнефть\" \"Башнефть-Новойл\"",3,80,"Труба 89х6 10Х17Н13М2Т МКК т/о р с 9941","Т",3.1E-2,322938,10011.078,"450045, г. Уфа, ПАО АНК \"Башнефть\" \"Башнефть-Новойл\""]
["Труба из нержавеющей стали","ПАО АНК \"Башнефть\" \"Башнефть-Новойл\"",3,81,"Труба б/ш 57х3,5 ТР316Ti","Т",1,317940,317940,"450045, г. Уфа, ПАО АНК \"Башнефть\" \"Башнефть-Новойл\""]
["Труба из нержавеющей стали","ПАО АНК \"Башнефть\" \"Башнефть-Новойл\"",3,82,"Труба б/ш 57х4 ТР316L","Т",2,317940,635880,"450045, г. Уфа, ПАО АНК \"Башнефть\" \"Башнефть-Новойл\""]
["Труба из нержавеющей стали","ПАО АНК \"Башнефть\" \"Башнефть-Новойл\"",3,83,"Труба б/ш 89х6 ТР316Ti","Т",3,317940,953820,"450045, г. Уфа, ПАО АНК \"Башнефть\" \"Башнефть-Новойл\""]
["Труба из нержавеющей стали","ПАО АНК \"Башнефть\" \"Башнефть-Новойл\"",3,84,"Труба б/ш г/д к/ст 102х8-12Х18Н10Т","Т",0.17,265482.59000000003,45132.040300000008,"450045, г. Уфа, ПАО АНК \"Башнефть\" \"Башнефть-Новойл\""]
["Труба из нержавеющей стали","ПАО АНК \"Башнефть\" \"Башнефть-Новойл\"",3,85,"Труба б/ш г/д к/ст 76х4 10Х17Н13М2Т","Т",4.5999999999999999E-2,212528.94,9776.3312399999995,"450045, г. Уфа, ПАО АНК \"Башнефть\" \"Башнефть-Новойл\""]
["Труба из нержавеющей стали","ПАО АНК \"Башнефть\" \"Башнефть-Новойл\"",3,86,"Труба б/ш х/д 325х8 08Х18Н10Т","Т",0.63200000000000001,191373.84,120948.26688,"450045, г. Уфа, ПАО АНК \"Башнефть\" \"Башнефть-Новойл\""]
["Труба из нержавеющей стали","ПАО АНК \"Башнефть\" \"Башнефть-Новойл\"",3,87,"Труба б/ш х/д 325х8 10Х17Н13М2Т","Т",0.35099999999999998,365333.42,128232.03041999998,"450045, г. Уфа, ПАО АНК \"Башнефть\" \"Башнефть-Новойл\""]
["Труба из нержавеющей стали","ПАО АНК \"Башнефть\" \"Башнефть-Новойл\"",3,88,"Труба б/ш х/д 38х3 12Х18Н10Т МКК","Т",0.16800000000000001,352969.24,59298.832320000001,"450045, г. Уфа, ПАО АНК \"Башнефть\" \"Башнефть-Новойл\""]
["Труба из нержавеющей стали","ПАО АНК \"Башнефть\" \"Башнефть-Новойл\"",3,89,"Труба б/ш х/д 38х4 08Х18Н10Т МКК","Т",2E-3,192156.95,384.31390000000005,"450045, г. Уфа, ПАО АНК \"Башнефть\" \"Башнефть-Новойл\""]
["Труба из нержавеющей стали","ПАО АНК \"Башнефть\" \"Башнефть-Новойл\"",3,90,"Труба б/ш х/д к/ст 12Х1-12Х18Н10Т","Т",7.0000000000000001E-3,360766.43,2525.36501,"450045, г. Уфа, ПАО АНК \"Башнефть\" \"Башнефть-Новойл\""]
["Труба из нержавеющей стали","ПАО АНК \"Башнефть\" \"Башнефть-Новойл\"",3,91,"Труба б/ш х/д к/ст 159Х6-12Х18Н10Т","Т",2.4350000000000001,267960,652482.6,"450045, г. Уфа, ПАО АНК \"Башнефть\" \"Башнефть-Новойл\""]
["Труба из нержавеющей стали","ПАО АНК \"Башнефть\" \"Башнефть-Новойл\"",3,92,"Труба б/ш х/д к/ст 159Х6-12Х18Н10Т","Т",2.056,267960,550925.76,"450045, г. Уфа, ПАО АНК \"Башнефть\" \"Башнефть-Новойл\""]
["Труба из нержавеющей стали","ПАО АНК \"Башнефть\" \"Башнефть-Новойл\"",3,93,"Труба б/ш х/д к/ст 20х2х6000-12Х18Н10Т","Т",0.81899999999999995,203361.72,166553.24867999999,"450045, г. Уфа, ПАО АНК \"Башнефть\" \"Башнефть-Новойл\""]
["Труба из нержавеющей стали","ПАО АНК \"Башнефть\" \"Башнефть-Новойл\"",3,94,"Труба б/ш х/д к/ст 273Х6-12Х18Н10Т","Т",0.52400000000000002,236128.37,123731.26588000001,"450045, г. Уфа, ПАО АНК \"Башнефть\" \"Башнефть-Новойл\""]
["Труба из нержавеющей стали","ПАО АНК \"Башнефть\" \"Башнефть-Новойл\"",3,95,"Труба б/ш х/д к/ст 273Х6-12Х18Н10Т","Т",1.0880000000000001,215399.44,234354.59072000001,"450045, г. Уфа, ПАО АНК \"Башнефть\" \"Башнефть-Новойл\""]
["Труба из нержавеющей стали","ПАО АНК \"Башнефть\" \"Башнефть-Новойл\"",3,96,"Труба б/ш х/д к/ст 28Х4-12Х18Н10Т","Т",0.90200000000000002,195859.62,176665.37724,"450045, г. Уфа, ПАО АНК \"Башнефть\" \"Башнефть-Новойл\""]
["Труба из нержавеющей стали","ПАО АНК \"Башнефть\" \"Башнефть-Новойл\"",3,97,"Труба б/ш х/д к/ст 325Х16-12Х18Н10Т","Т",1.4930000000000001,226151.46,337644.12978000002,"450045, г. Уфа, ПАО АНК \"Башнефть\" \"Башнефть-Новойл\""]
["Труба из нержавеющей стали","ПАО АНК \"Башнефть\" \"Башнефть-Новойл\"",3,98,"Труба б/ш х/д к/ст 45Х4-12Х18Н10Т","Т",2.4E-2,193731.44,4649.5545600000005,"450045, г. Уфа, ПАО АНК \"Башнефть\" \"Башнефть-Новойл\""]
["Труба из нержавеющей стали","ПАО АНК \"Башнефть\" \"Башнефть-Новойл\"",3,99,"Труба б/ш х/д к/ст 48Х3,5-10Х17Н13М2Т","Т",1.0999999999999999E-2,308236.32,3390.5995199999998,"450045, г. Уфа, ПАО АНК \"Башнефть\" \"Башнефть-Новойл\""]
["Труба из нержавеющей стали","ПАО АНК \"Башнефть\" \"Башнефть-Новойл\"",3,100,"Труба б/ш х/д к/ст 76Х4-12Х18Н10Т","Т",3.1E-2,284720.15000000002,8826.3246500000005,"450045, г. Уфа, ПАО АНК \"Башнефть\" \"Башнефть-Новойл\""]
["Труба из нержавеющей стали","ПАО АНК \"Башнефть\" \"Башнефть-Новойл\"",3,101,"Труба б/ш х/д к/ст 89Х4,5-10Х17Н13М2Т","Т",0.80700000000000005,294885.36,237972.48552000002,"450045, г. Уфа, ПАО АНК \"Башнефть\" \"Башнефть-Новойл\""]
["Труба из нержавеющей стали","ПАО АНК \"Башнефть\" \"Башнефть-Новойл\"",3,102,"Труба б/ш х/д к/ст 8х1 08Х18Н10Т","ПМ",105.55,58.48,6172.5639999999994,"450045, г. Уфа, ПАО АНК \"Башнефть\" \"Башнефть-Новойл\""]
["Труба из нержавеющей стали","ПАО АНК \"Башнефть\" \"Башнефть-Новойл\"",3,103,"Труба б/ш х/д т/о 20х3 12Х18Н10Т МКК","ПМ",28.61,397.1,11361.031000000001,"450045, г. Уфа, ПАО АНК \"Башнефть\" \"Башнефть-Новойл\""]
["Труба из нержавеющей стали","ПАО АНК \"Башнефть\" \"Башнефть-Новойл\"",3,104,"Х Труба 325х10 12Х18Н10Т ГОСТ 9941","Т",3.0000000000000001E-3,234193.54,702.58062000000007,"450045, г. Уфа, ПАО АНК \"Башнефть\" \"Башнефть-Новойл\""]
["Труба из углеродистой стали","ПАО АНК \"Башнефть\" \"Башнефть-Новойл\"",4,105,"Труба 18х3 09Г2С ГОСТ 8734","ПМ",167.5,183.96,30813.300000000003,"450045, г. Уфа, ПАО АНК \"Башнефть\" \"Башнефть-Новойл\""]
["Труба из углеродистой стали","ПАО АНК \"Башнефть\" \"Башнефть-Новойл\"",4,106,"Труба 18х3,5 - 20","ПМ",475.9,183.96,87546.563999999998,"450045, г. Уфа, ПАО АНК \"Башнефть\" \"Башнефть-Новойл\""]
["Труба из углеродистой стали","ПАО АНК \"Башнефть\" \"Башнефть-Новойл\"",4,107,"Труба 21х3 20 ГОСТ 8734","ПМ",10,85.05,850.5,"450045, г. Уфа, ПАО АНК \"Башнефть\" \"Башнефть-Новойл\""]
["Труба из углеродистой стали","ПАО АНК \"Башнефть\" \"Башнефть-Новойл\"",4,108,"Труба б/ш х/д 18Х3,5 В ст20","Т",4.51,89364.24,403032.72240000003,"450045, г. Уфа, ПАО АНК \"Башнефть\" \"Башнефть-Новойл\""]
["Труба из углеродистой стали","ПАО АНК \"Башнефть\" \"Башнефть-Новойл\"",4,109,"Труба б/ш х/д 18Х3,5 В ст20","Т",2.54,89364.24,226985.16960000002,"450045, г. Уфа, ПАО АНК \"Башнефть\" \"Башнефть-Новойл\""]
["Труба из углеродистой стали","ПАО АНК \"Башнефть\" \"Башнефть-Новойл\"",4,110,"Труба б/ш х/д 18Х3,5 В ст20","Т",3.7949999999999999,89364.24,339137.29080000002,"450045, г. Уфа, ПАО АНК \"Башнефть\" \"Башнефть-Новойл\""]
["Труба из углеродистой стали","ПАО АНК \"Башнефть\" \"Башнефть-Новойл\"",4,111,"Труба б/ш х/д 18х4 Ст20","ПМ",54,123.48,6667.92,"450045, г. Уфа, ПАО АНК \"Башнефть\" \"Башнефть-Новойл\""]
["Труба из углеродистой стали","ПАО АНК \"Башнефть\" \"Башнефть-Новойл\"",4,112,"Труба б/ш х/д 18Х5 В ст20","Т",1.6E-2,130578.42,2089.2547199999999,"450045, г. Уфа, ПАО АНК \"Башнефть\" \"Башнефть-Новойл\""]
["Труба из углеродистой стали","ПАО АНК \"Башнефть\" \"Башнефть-Новойл\"",4,113,"Труба б/ш х/д 18Х5 В ст20","Т",0.08,130578.42,10446.2736,"450045, г. Уфа, ПАО АНК \"Башнефть\" \"Башнефть-Новойл\""]
["Труба из углеродистой стали","ПАО АНК \"Башнефть\" \"Башнефть-Новойл\"",4,114,"Труба 1220х20 A387Gr.5Cl2/A691Gr5CrCl22","Т",7.2919999999999998,38640,281762.88,"450045, г. Уфа, ПАО АНК \"Башнефть\" \"Башнефть-Новойл\""]
["Труба из углеродистой стали","ПАО АНК \"Башнефть\" \"Башнефть-Новойл\"",4,115,"Труба 18х3 09Г2С ГОСТ 8734","ПМ",260,183.96,47829.599999999999,"450045, г. Уфа, ПАО АНК \"Башнефть\" \"Башнефть-Новойл\""]
["Труба из углеродистой стали","ПАО АНК \"Башнефть\" \"Башнефть-Новойл\"",4,116,"Труба 18х3 09Г2С ГОСТ 8734","ПМ",104,183.96,19131.84,"450045, г. Уфа, ПАО АНК \"Башнефть\" \"Башнефть-Новойл\""]
["Труба из углеродистой стали","ПАО АНК \"Башнефть\" \"Башнефть-Новойл\"",4,117,"Труба 18х3 09Г2С ГОСТ 8734","ПМ",64.2,183.96,11810.232000000002,"450045, г. Уфа, ПАО АНК \"Башнефть\" \"Башнефть-Новойл\""]
["Труба из углеродистой стали","ПАО АНК \"Башнефть\" \"Башнефть-Новойл\"",4,118,"Труба 18х3 09Г2С ГОСТ 8734","ПМ",100,183.96,18396,"450045, г. Уфа, ПАО АНК \"Башнефть\" \"Башнефть-Новойл\""]
["Труба из углеродистой стали","ПАО АНК \"Башнефть\" \"Башнефть-Новойл\"",4,119,"Труба 18х3 20 ГОСТ 8734","ПМ",22.745000000000001,183.96,4184.1702000000005,"450045, г. Уфа, ПАО АНК \"Башнефть\" \"Башнефть-Новойл\""]
["Труба из углеродистой стали","ПАО АНК \"Башнефть\" \"Башнефть-Новойл\"",4,120,"Труба 18х3 20 ГОСТ 8734","ПМ",8.1029999999999998,183.96,1490.62788,"450045, г. Уфа, ПАО АНК \"Башнефть\" \"Башнефть-Новойл\""]
["Труба из углеродистой стали","ПАО АНК \"Башнефть\" \"Башнефть-Новойл\"",4,121,"Труба 18х3,5 - 20","ПМ",110,183.96,20235.600000000002,"450045, г. Уфа, ПАО АНК \"Башнефть\" \"Башнефть-Новойл\""]
["Труба из углеродистой стали","ПАО АНК \"Башнефть\" \"Башнефть-Новойл\"",4,122,"Труба 21х3 20 ГОСТ 8734","ПМ",216.2,85.05,18387.809999999998,"450045, г. Уфа, ПАО АНК \"Башнефть\" \"Башнефть-Новойл\""]
["Труба из углеродистой стали","ПАО АНК \"Башнефть\" \"Башнефть-Новойл\"",4,123,"Труба 45х4 - 09Г2С","Т",3.056,75684,231290.304,"450045, г. Уфа, ПАО АНК \"Башнефть\" \"Башнефть-Новойл\""]
["Труба из углеродистой стали","ПАО АНК \"Башнефть\" \"Башнефть-Новойл\"",4,124,"Труба 465х40 - 20","Т",1.4830000000000001,56574,83899.241999999998,"450045, г. Уфа, ПАО АНК \"Башнефть\" \"Башнефть-Новойл\""]
["Труба из углеродистой стали","ПАО АНК \"Башнефть\" \"Башнефть-Новойл\"",4,125,"Труба б/ш г/д 18х4 ст20","ПМ",50.4,67.83,3418.6319999999996,"450045, г. Уфа, ПАО АНК \"Башнефть\" \"Башнефть-Новойл\""]
["Труба из углеродистой стали","ПАО АНК \"Башнефть\" \"Башнефть-Новойл\"",4,126,"Труба б/ш г/д 325Х14 В ст20","Т",1.95,49980,97461,"450045, г. Уфа, ПАО АНК \"Башнефть\" \"Башнефть-Новойл\""]
["Труба из углеродистой стали","ПАО АНК \"Башнефть\" \"Башнефть-Новойл\"",4,127,"Труба б/ш г/д 457х17 В ст20","Т",3.68,89.55,329.54399999999998,"450045, г. Уфа, ПАО АНК \"Башнефть\" \"Башнефть-Новойл\""]
["Труба из углеродистой стали","ПАО АНК \"Башнефть\" \"Башнефть-Новойл\"",4,128,"Труба б/ш х/д 18Х3 В ст20","Т",6.2E-2,89364.24,5540.5828799999999,"450045, г. Уфа, ПАО АНК \"Башнефть\" \"Башнефть-Новойл\""]
["Труба из углеродистой стали","ПАО АНК \"Башнефть\" \"Башнефть-Новойл\"",4,129,"Труба б/ш х/д 18Х3,5 В ст20","Т",19.123999999999999,89364.24,1709001.7257600001,"450045, г. Уфа, ПАО АНК \"Башнефть\" \"Башнефть-Новойл\""]
["Труба из углеродистой стали","ПАО АНК \"Башнефть\" \"Башнефть-Новойл\"",4,130,"Труба б/ш х/д 18Х3,5 В ст20","Т",13.815,89364.24,{"$f":"G134*H134","v":1234566.9756},"450045, г. Уфа, ПАО АНК \"Башнефть\" \"Башнефть-Новойл\""]
["Труба из углеродистой стали","ПАО АНК \"Башнефть\" \"Башнефть-Новойл\"",4,131,"Труба б/ш х/д 18Х3,5 В ст20","Т",5.0599999999999996,89364.24,{"$f":"G135*H135","v":452183.05439999996},"450045, г. Уфа, ПАО АНК \"Башнефть\" \"Башнефть-Новойл\""]
["Труба из углеродистой стали","ПАО АНК \"Башнефть\" \"Башнефть-Новойл\"",4,132,"Труба б/ш х/д 18х4 Ст20","ПМ",32.25,123.48,3982.23,"450045, г. Уфа, ПАО АНК \"Башнефть\" \"Башнефть-Новойл\""]
["Труба из углеродистой стали","ПАО АНК \"Башнефть\" \"Башнефть-Новойл\"",4,133,"Труба б/ш х/д 18х4 Ст20","ПМ",666.25,123.48,82268.55,"450045, г. Уфа, ПАО АНК \"Башнефть\" \"Башнефть-Новойл\""]
["Труба из углеродистой стали","ПАО АНК \"Башнефть\" \"Башнефть-Новойл\"",4,134,"Труба б/ш х/д 18х4 Ст20","ПМ",220,123.48,27165.600000000002,"450045, г. Уфа, ПАО АНК \"Башнефть\" \"Башнефть-Новойл\""]
["Труба из углеродистой стали","ПАО АНК \"Башнефть\" \"Башнефть-Новойл\"",4,135,"Труба б/ш х/д 18х4 Ст20","ПМ",1335,123.48,164845.80000000002,"450045, г. Уфа, ПАО АНК \"Башнефть\" \"Башнефть-Новойл\""]
["Труба из углеродистой стали","ПАО АНК \"Башнефть\" \"Башнефть-Новойл\"",4,136,"Труба б/ш х/д 18х4 Ст20","ПМ",35.299999999999997,123.48,4358.8440000000001,"450045, г. Уфа, ПАО АНК \"Башнефть\" \"Башнефть-Новойл\""]
["Труба из углеродистой стали","ПАО АНК \"Башнефть\" \"Башнефть-Новойл\"",4,137,"Труба б/ш х/д 18х4 Ст20","ПМ",100,123.48,12348,"450045, г. Уфа, ПАО АНК \"Башнефть\" \"Башнефть-Новойл\""]
["Труба из углеродистой стали","ПАО АНК \"Башнефть\" \"Башнефть-Новойл\"",4,138,"Труба б/ш х/д 18х4 Ст20","ПМ",105,123.48,12965.4,"450045, г. Уфа, ПАО АНК \"Башнефть\" \"Башнефть-Новойл\""]
["Труба из углеродистой стали","ПАО АНК \"Башнефть\" \"Башнефть-Новойл\"",4,139,"Труба б/ш х/д 18х4 Ст20","ПМ",6,123.48,740.88,"450045, г. Уфа, ПАО АНК \"Башнефть\" \"Башнефть-Новойл\""]
["Труба из углеродистой стали","ПАО АНК \"Башнефть\" \"Башнефть-Новойл\"",4,140,"Труба б/ш х/д 18х4 Ст20","ПМ",830,123.48,102488.40000000001,"450045, г. Уфа, ПАО АНК \"Башнефть\" \"Башнефть-Новойл\""]
["Труба из углеродистой стали","ПАО АНК \"Башнефть\" \"Башнефть-Новойл\"",4,141,"Труба б/ш х/д 18х5 09Г2С","ПМ",18,138.6,2494.7999999999997,"450045, г. Уфа, ПАО АНК \"Башнефть\" \"Башнефть-Новойл\""]
["Труба из углеродистой стали","ПАО АНК \"Башнефть\" \"Башнефть-Новойл\"",4,142,"Труба б/ш х/д 18Х5 В ст20","Т",1,130578.42,130578.42,"450045, г. Уфа, ПАО АНК \"Башнефть\" \"Башнефть-Новойл\""]
["Труба из углеродистой стали","ПАО АНК \"Башнефть\" \"Башнефть-Новойл\"",4,143,"Труба б/ш х/д 18Х5 В ст20","Т",0.16800000000000001,130578.42,21937.174559999999,"450045, г. Уфа, ПАО АНК \"Башнефть\" \"Башнефть-Новойл\""]
["Труба из углеродистой стали","ПАО АНК \"Башнефть\" \"Башнефть-Новойл\"",4,144,"Труба б/ш х/д 219х12 ст08Х18Н10Т","Т",4.0000000000000001E-3,239929.11,959.71643999999992,"450045, г. Уфа, ПАО АНК \"Башнефть\" \"Башнефть-Новойл\""]
["Труба из углеродистой стали","ПАО АНК \"Башнефть\" \"Башнефть-Новойл\"",4,145,"Труба б/ш х/д 21Х3 В ст20","Т",15.76,130578.42,2057915.8991999999,"450045, г. Уфа, ПАО АНК \"Башнефть\" \"Башнефть-Новойл\""]
["Труба из углеродистой стали","ПАО АНК \"Башнефть\" \"Башнефть-Новойл\"",4,146,"Труба б/ш х/д 45Х3 В ст20","Т",4.1000000000000002E-2,57519,2358.279,"450045, г. Уфа, ПАО АНК \"Башнефть\" \"Башнефть-Новойл\""]
["Труба из углеродистой стали","ПАО АНК \"Башнефть\" \"Башнефть-Новойл\"",4,147,"Труба б/ш х/д 48Х3 В ст20","Т",5.7000000000000002E-2,57519,3278.5830000000001,"450045, г. Уфа, ПАО АНК \"Башнефть\" \"Башнефть-Новойл\""]
["Труба из углеродистой стали","ПАО АНК \"Башнефть\" \"Башнефть-Новойл\"",4,148,"Труба стальная б/ш Г 45х4 - 20","Т",0.41599999999999998,55813.8,23218.540799999999,"450045, г. Уфа, ПАО АНК \"Башнефть\" \"Башнефть-Новойл\""]
["Труба из углеродистой стали","ПАО АНК \"Башнефть\" \"Башнефть-Новойл\"",4,149,"Труба стальная б/ш Г 89х6 - 20","Т",7.0000000000000001E-3,331949.68,2323.6477599999998,"450045, г. Уфа, ПАО АНК \"Башнефть\" \"Башнефть-Новойл\""]
["Труба чугунная","ПАО АНК \"Башнефть\" \"Башнефть-Новойл\"",5,150,"Труба ВЧШГ-R-300-6000 К13","ШТ",10,12211.5,122115,"450045, г. Уфа, ПАО АНК \"Башнефть\" \"Башнефть-Новойл\""]
["Труба чугунная","ПАО АНК \"Башнефть\" \"Башнефть-Новойл\"",5,151,"Труба раструбная ВЧШГ-Т150-6000","ШТ",2,15060.25,30120.5,"450045, г. Уфа, ПАО АНК \"Башнефть\" \"Башнефть-Новойл\""]
["Труба чугунная","ПАО АНК \"Башнефть\" \"Башнефть-Новойл\"",5,152,"Труба раструбная ВЧШГ-Т250-6000","ШТ",8,11680.87,93446.96,"450045, г. Уфа, ПАО АНК \"Башнефть\" \"Башнефть-Новойл\""]
["Труба чугунная","ПАО АНК \"Башнефть\" \"Башнефть-Новойл\"",5,153,"Труба раструбная ВЧШГ-Т250-6000","ШТ",13,11840.92,153931.96,"450045, г. Уфа, ПАО АНК \"Башнефть\" \"Башнефть-Новойл\""]
["Труба чугунная","ПАО АНК \"Башнефть\" \"Башнефть-Новойл\"",5,154,"Труба раструбная ВЧШГ-Т800-6000","ШТ",8,62762.63,502101.04,"450045, г. Уфа, ПАО АНК \"Башнефть\" \"Башнефть-Новойл\""]
["Труба чугунная","ПАО АНК \"Башнефть\" \"Башнефть-Новойл\"",5,155,"Труба раструбная ВЧШГ-Т800-6000","ШТ",8,62762.63,502101.04,"450045, г. Уфа, ПАО АНК \"Башнефть\" \"Башнефть-Новойл\""]
["Труба чугунная","ПАО АНК \"Башнефть\" \"Башнефть-Новойл\"",5,156,"Труба чугунная ЧШГТ Ду100 L=6000","ШТ",1,4130.72,4130.72,"450045, г. Уфа, ПАО АНК \"Башнефть\" \"Башнефть-Новойл\""]
["Труба чугунная","ПАО АНК \"Башнефть\" \"Башнефть-Новойл\"",5,157,"Труба ВЧШГ-R-300-6000 К13","ШТ",20,12211.5,244230,"450045, г. Уфа, ПАО АНК \"Башнефть\" \"Башнефть-Новойл\""]
["Труба чугунная","ПАО АНК \"Башнефть\" \"Башнефть-Новойл\"",5,158,"Труба ВЧШГ-R-300-6000 К13","ШТ",47,12211.5,573940.5,"450045, г. Уфа, ПАО АНК \"Башнефть\" \"Башнефть-Новойл\""]
["Труба чугунная","ПАО АНК \"Башнефть\" \"Башнефть-Новойл\"",5,159,"Труба ВЧШГ-R-300-6000 К13","ШТ",8,12211.5,97692,"450045, г. Уфа, ПАО АНК \"Башнефть\" \"Башнефть-Новойл\""]
["Труба чугунная","ПАО АНК \"Башнефть\" \"Башнефть-Новойл\"",5,160,"Труба ВЧШГ-R-300-6000 К13","ШТ",47.332999999999998,12211.5,578006.92949999997,"450045, г. Уфа, ПАО АНК \"Башнефть\" \"Башнефть-Новойл\""]
["Труба чугунная","ПАО АНК \"Башнефть\" \"Башнефть-Новойл\"",5,161,"Труба ВЧШГ-R-300-6000 К13","ШТ",10,12211.5,122115,"450045, г. Уфа, ПАО АНК \"Башнефть\" \"Башнефть-Новойл\""]
["Труба чугунная","ПАО АНК \"Башнефть\" \"Башнефть-Новойл\"",5,162,"Труба раструбная ВЧШГ-Т150-6000","ШТ",12,15060.25,180723,"450045, г. Уфа, ПАО АНК \"Башнефть\" \"Башнефть-Новойл\""]
["Труба чугунная","ПАО АНК \"Башнефть\" \"Башнефть-Новойл\"",5,163,"Труба раструбная ВЧШГ-Т150-6000","ШТ",4,6177.89,24711.56,"450045, г. Уфа, ПАО АНК \"Башнефть\" \"Башнефть-Новойл\""]
["Труба чугунная","ПАО АНК \"Башнефть\" \"Башнефть-Новойл\"",5,164,"Труба раструбная ВЧШГ-Т250-6000","ШТ",1.5,11680.87,17521.305,"450045, г. Уфа, ПАО АНК \"Башнефть\" \"Башнефть-Новойл\""]
["Труба чугунная","ПАО АНК \"Башнефть\" \"Башнефть-Новойл\"",5,165,"Труба раструбная ВЧШГ-Т250-6000","ШТ",23.5,11840.92,278261.62,"450045, г. Уфа, ПАО АНК \"Башнефть\" \"Башнефть-Новойл\""]
["Труба чугунная","ПАО АНК \"Башнефть\" \"Башнефть-Новойл\"",5,166,"Труба раструбная ВЧШГ-Т700-6000","ШТ",13,53911.92,700854.96,"450045, г. Уфа, ПАО АНК \"Башнефть\" \"Башнефть-Новойл\""]
["Труба чугунная","ПАО АНК \"Башнефть\" \"Башнефть-Новойл\"",5,167,"Труба раструбная ВЧШГ-Т800-6000","ШТ",4,62762.63,251050.52,"450045, г. Уфа, ПАО АНК \"Башнефть\" \"Башнефть-Новойл\""]
["Труба чугунная","ПАО АНК \"Башнефть\" \"Башнефть-Новойл\"",5,168,"Труба чугунная ЧШГТ Ду100 L=6000","ШТ",1,4130.72,4130.72,"450045, г. Уфа, ПАО АНК \"Башнефть\" \"Башнефть-Новойл\""]
["Трубы водогазопроводные","ПАО АНК \"Башнефть\" \"Башнефть-Новойл\"",6,169,"Труба водогазопроводная 50Х3,5 ст20","Т",5.5E-2,15563.94,856.01670000000001,"450045, г. Уфа, ПАО АНК \"Башнефть\" \"Башнефть-Новойл\""]
["Трубы водогазопроводные","ПАО АНК \"Башнефть\" \"Башнефть-Новойл\"",6,170,"Труба водогазопроводная 50Х3,5 ст20","Т",0.38200000000000001,15563.94,5945.42508,"450045, г. Уфа, ПАО АНК \"Башнефть\" \"Башнефть-Новойл\""]
["Трубы водогазопроводные","ПАО АНК \"Башнефть\" \"Башнефть-Новойл\"",6,171,"Труба водогазопроводная 50Х3,5 ст20","Т",1.478,15563.94,23003.50332,"450045, г. Уфа, ПАО АНК \"Башнефть\" \"Башнефть-Новойл\""]
["Трубы водогазопроводные","ПАО АНК \"Башнефть\" \"Башнефть-Новойл\"",6,172,"Труба водогазопроводная 50Х3,5 ст20","Т",2.3660000000000001,15563.94,36824.282040000006,"450045, г. Уфа, ПАО АНК \"Башнефть\" \"Башнефть-Новойл\""]
["Трубы водогазопроводные","ПАО АНК \"Башнефть\" \"Башнефть-Новойл\"",6,173,"Труба водогазопроводная 80Х4","Т",5.8999999999999997E-2,15120.42,892.10478000000001,"450045, г. Уфа, ПАО АНК \"Башнефть\" \"Башнефть-Новойл\""]
["Трубы водогазопроводные","ПАО АНК \"Башнефть\" \"Башнефть-Новойл\"",6,174,"Труба водогазопроводная 40Х4 ст20","Т",0.03,36031.379999999997,1080.9413999999999,"450045, г. Уфа, ПАО АНК \"Башнефть\" \"Башнефть-Новойл\""]
["Трубы водогазопроводные","ПАО АНК \"Башнефть\" \"Башнефть-Новойл\"",6,175,"Труба водогазопроводная 50Х3,5 ст20","Т",13.029,15563.94,202782.57425999999,"450045, г. Уфа, ПАО АНК \"Башнефть\" \"Башнефть-Новойл\""]
["Трубы водогазопроводные","ПАО АНК \"Башнефть\" \"Башнефть-Новойл\"",6,176,"Труба водогазопроводная 50Х3,5 ст20","Т",17.452999999999999,15563.94,271637.44481999998,"450045, г. Уфа, ПАО АНК \"Башнефть\" \"Башнефть-Новойл\""]
["Трубы водогазопроводные","ПАО АНК \"Башнефть\" \"Башнефть-Новойл\"",6,177,"Труба водогазопроводная 50Х3,5 ст20","Т",1.8779999999999999,15563.94,29229.079320000001,"450045, г. Уфа, ПАО АНК \"Башнефть\" \"Башнефть-Новойл\""]
["Трубы водогазопроводные","ПАО АНК \"Башнефть\" \"Башнефть-Новойл\"",6,178,"Труба водогазопроводная 50Х3,5 ст20","Т",0.4,15563.94,6225.5760000000009,"450045, г. Уфа, ПАО АНК \"Башнефть\" \"Башнефть-Новойл\""]
["Трубы водогазопроводные","ПАО АНК \"Башнефть\" \"Башнефть-Новойл\"",6,179,"Труба водогазопроводная 50Х3,5 ст20","Т",3.5000000000000003E-2,15563.94,544.73790000000008,"450045, г. Уфа, ПАО АНК \"Башнефть\" \"Башнефть-Новойл\""]
["Трубы водогазопроводные","ПАО АНК \"Башнефть\" \"Башнефть-Новойл\"",6,180,"Труба водогазопроводная 50Х3,5 ст3сп","Т",4.4999999999999998E-2,13975.5,628.89749999999992,"450045, г. Уфа, ПАО АНК \"Башнефть\" \"Башнефть-Новойл\""]
["Трубы водогазопроводные","ПАО АНК \"Башнефть\" \"Башнефть-Новойл\"",6,181,"Труба водогазопроводная Ц-25Х2,8 ст10","Т",1.0999999999999999E-2,40029.379999999997,440.32317999999992,"450045, г. Уфа, ПАО АНК \"Башнефть\" \"Башнефть-Новойл\""]
["Трубы водогазопроводные","ПАО АНК \"Башнефть\" \"Башнефть-Новойл\"",6,182,"Труба водогазопроводная Ц-40Х3,5 ст2пс","Т",1.9E-2,37876,719.64400000000001,"450045, г. Уфа, ПАО АНК \"Башнефть\" \"Башнефть-Новойл\""]
["Трубы водогазопроводные","ПАО АНК \"Башнефть\" \"Башнефть-Новойл\"",6,183,"Труба водогазопроводная Ц-50Х3,5","Т",6.8150000000000004,38484.550000000003,262272.20825000003,"450045, г. Уфа, ПАО АНК \"Башнефть\" \"Башнефть-Новойл\""]
["Трубы водогазопроводные","ПАО АНК \"Башнефть\" \"Башнефть-Новойл\"",6,184,"Труба водогазопроводная Ц-50Х3,5 ст20","Т",0.47299999999999998,38527.9,18223.6967,"450045, г. Уфа, ПАО АНК \"Башнефть\" \"Башнефть-Новойл\""]
["Трубы водогазопроводные","ПАО АНК \"Башнефть\" \"Башнефть-Новойл\"",6,185,"Труба водогазопроводная Ц-50Х3,5 ст2пс","Т",1.4830000000000001,37111.89,55036.932870000004,"450045, г. Уфа, ПАО АНК \"Башнефть\" \"Башнефть-Новойл\""]

{"sheet":"Лист1","index":1,"n_rows":0,"n_cols":0,"rows_kept":0,"cut":false,"hidden":false,"merged":[]}